[Event "Titled Tuesday Blitz June 28 Late 2022"]
[White "Isanzhulov, Arystan"]
[Black "Garagulya, Konstantin"]
[WhiteFideId "13711644"]
[BlackFideId "4128931"]
[WhiteElo "2293"]
[BlackElo "2329"]
[Result "1/2-1/2"]
[Round "01"]
[TimeControl "180+1"]
[Date "2022.06.28"]
[WhiteClock "0:00:11"]
[BlackClock "0:00:05"]

1. d4 {[%clk 0:02:53]}  d5 {[%clk 0:02:12]} 2. Nf3 {[%clk 0:02:51]}  Nf6 {[%clk 0:02:10]} 3. Bf4 {[%clk 0:02:51]}  c6 {[%clk 0:02:09]} 4. c3 {[%clk 0:02:50]}  Qb6 {[%clk 0:02:09]} 5. Qb3 {[%clk 0:02:50]}  Bf5 {[%clk 0:02:09]} 6. e3 {[%clk 0:02:47]}  e6 {[%clk 0:02:08]} 7. Nbd2 {[%clk 0:02:45]}  Nh5 {[%clk 0:02:07]} 8. Be5 {[%clk 0:02:44]}  f6 {[%clk 0:02:07]} 9. Bg3 {[%clk 0:02:45]}  Nxg3 {[%clk 0:02:06]} 10. hxg3 {[%clk 0:02:46]}  h6 {[%clk 0:02:05]} 11. Nh4 {[%clk 0:02:33]}  Bh7 {[%clk 0:02:02]} 12. Be2 {[%clk 0:02:34]}  Qxb3 {[%clk 0:02:01]} 13. axb3 {[%clk 0:02:35]}  g5 {[%clk 0:02:00]} 14. Bh5+ {[%clk 0:02:26]}  Kd7 {[%clk 0:01:59]} 15. Ng6 {[%clk 0:02:25]}  Bxg6 {[%clk 0:01:58]} 16. Bxg6 {[%clk 0:02:26]}  Na6 {[%clk 0:01:57]} 17. g4 {[%clk 0:02:24]}  Nc7 {[%clk 0:01:57]} 18. Ke2 {[%clk 0:02:23]}  e5 {[%clk 0:01:51]} 19. Bf5+ {[%clk 0:02:21]}  Kd6 {[%clk 0:01:50]} 20. g3 {[%clk 0:02:20]}  Bg7 {[%clk 0:01:50]} 21. b4 {[%clk 0:02:18]}  Rhe8 {[%clk 0:01:50]} 22. Kd3 {[%clk 0:02:18]}  Re7 {[%clk 0:01:37]} 23. Nb3 {[%clk 0:02:16]}  Nb5 {[%clk 0:01:34]} 24. Nc5 {[%clk 0:02:11]}  Rae8 {[%clk 0:01:31]} 25. Bg6 {[%clk 0:02:00]}  Rb8 {[%clk 0:01:19]} 26. Kd2 {[%clk 0:01:49]}  Ra8 {[%clk 0:01:16]} 27. Ra2 {[%clk 0:01:41]}  Kc7 {[%clk 0:01:11]} 28. Bd3 {[%clk 0:01:33]}  Nd6 {[%clk 0:01:10]} 29. Rha1 {[%clk 0:01:32]}  a6 {[%clk 0:01:08]} 30. b3 {[%clk 0:01:29]}  Rae8 {[%clk 0:01:06]} 31. Rh1 {[%clk 0:01:28]}  Rf8 {[%clk 0:01:00]} 32. Bf5 {[%clk 0:01:27]}  Rfe8 {[%clk 0:01:00]} 33. Raa1 {[%clk 0:01:27]}  exd4 {[%clk 0:00:51]} 34. cxd4 {[%clk 0:01:25]}  Nb5 {[%clk 0:00:51]} 35. Rhc1 {[%clk 0:01:22]}  Nd6 {[%clk 0:00:49]} 36. Kd3 {[%clk 0:01:21]}  Rh8 {[%clk 0:00:45]} 37. Bg6 {[%clk 0:01:18]}  Rf8 {[%clk 0:00:42]} 38. Rc2 {[%clk 0:01:15]}  f5 {[%clk 0:00:42]} 39. gxf5 {[%clk 0:01:14]}  Nxf5 {[%clk 0:00:42]} 40. b5 {[%clk 0:01:08]}  axb5 {[%clk 0:00:39]} 41. Ra7 {[%clk 0:01:08]}  Kb6 {[%clk 0:00:31]} 42. Rca2 {[%clk 0:01:08]}  Nd6 {[%clk 0:00:30]} 43. f4 {[%clk 0:00:57]}  Rf6 {[%clk 0:00:25]} 44. Bh5 {[%clk 0:00:45]}  Ne4 {[%clk 0:00:19]} 45. b4 {[%clk 0:00:33]}  Nxg3 {[%clk 0:00:14]} 46. Bg4 {[%clk 0:00:33]}  Ne4 {[%clk 0:00:14]} 47. Bc8 {[%clk 0:00:26]}  Nd6 {[%clk 0:00:14]} 48. Bd7 {[%clk 0:00:24]}  gxf4 {[%clk 0:00:13]} 49. R2a6+ {[%clk 0:00:19]}  bxa6 {[%clk 0:00:10]} 50. Rxa6+ {[%clk 0:00:16]}  Kc7 {[%clk 0:00:10]} 51. exf4 {[%clk 0:00:14]}  Kb8 {[%clk 0:00:08]} 52. Rb6+ {[%clk 0:00:13]}  Kc7 {[%clk 0:00:07]} 53. Ra6 {[%clk 0:00:12]}  Rxf4 {[%clk 0:00:08]} 54. Rxc6+ {[%clk 0:00:12]}  Kb8 {[%clk 0:00:04]} 55. Rb6+ {[%clk 0:00:12]}  Kc7 {[%clk 0:00:03]} 56. Rc6+ {[%clk 0:00:12]}  Kb8 {[%clk 0:00:03]} 57. Rxd6 {[%clk 0:00:11]}  Rf3+ {[%clk 0:00:03]} 58. Kd2 {[%clk 0:00:11]}  Rf2+ {[%clk 0:00:04]} 59. Kd1 {[%clk 0:00:11]}  Rf1+ {[%clk 0:00:04]} 60. Kd2 {[%clk 0:00:12]}  Rf3 {[%clk 0:00:04]} 61. Bxb5 {[%clk 0:00:10]}  Rf2+ {[%clk 0:00:03]} 62. Kd1 {[%clk 0:00:11]}  Bxd4 {[%clk 0:00:02]} 63. Rb6+ {[%clk 0:00:11]}  Kc7 {[%clk 0:00:03]} 64. Rc6+ {[%clk 0:00:11]}  Kd8 {[%clk 0:00:03]} 65. Rd6+ {[%clk 0:00:10]}  Kc7 {[%clk 0:00:03]} 66. Rc6+ {[%clk 0:00:10]}  Kb8 {[%clk 0:00:04]} 67. Rb6+ {[%clk 0:00:10]}  Ka7 {[%clk 0:00:04]} 68. Ra6+ {[%clk 0:00:10]}  Kb8 {[%clk 0:00:05]} 69. Rb6+ {[%clk 0:00:11]} 1/2-1/2


[Site "https://www.chess.com"]

[Event "Titled Tuesday Blitz June 28 Late 2022"]
[White "Jarmula, Lukasz"]
[Black "Caputcuoglu, Zeki Berke"]
[WhiteFideId "1160664"]
[BlackFideId "34548610"]
[WhiteElo "2246"]
[BlackElo "1368"]
[Result "1-0"]
[Round "01"]
[TimeControl "180+1"]
[Date "2022.06.29"]
[WhiteClock "0:02:01"]
[BlackClock "0:01:44"]

1. d4 {[%clk 0:03:00]}  Nf6 {[%clk 0:02:59]} 2. Bf4 {[%clk 0:03:00]}  d5 {[%clk 0:02:57]} 3. e3 {[%clk 0:03:00]}  c5 {[%clk 0:02:57]} 4. Nf3 {[%clk 0:03:00]}  e6 {[%clk 0:02:56]} 5. Nbd2 {[%clk 0:02:59]}  Bd6 {[%clk 0:02:56]} 6. Ne5 {[%clk 0:02:58]}  Qc7 {[%clk 0:02:55]} 7. c3 {[%clk 0:02:57]}  Nfd7 {[%clk 0:02:55]} 8. Nxd7 {[%clk 0:02:52]}  Nxd7 {[%clk 0:02:56]} 9. Bg3 {[%clk 0:02:50]}  O-O {[%clk 0:02:56]} 10. Bd3 {[%clk 0:02:50]}  b6 {[%clk 0:02:55]} 11. O-O {[%clk 0:02:41]}  Bxg3 {[%clk 0:02:54]} 12. hxg3 {[%clk 0:02:40]}  e5 {[%clk 0:02:52]} 13. dxc5 {[%clk 0:02:38]}  Nxc5 {[%clk 0:02:50]} 14. Bc2 {[%clk 0:02:38]}  Be6 {[%clk 0:02:44]} 15. Qe2 {[%clk 0:02:36]}  Rad8 {[%clk 0:02:42]} 16. Rad1 {[%clk 0:02:36]}  d4 {[%clk 0:02:39]} 17. exd4 {[%clk 0:02:31]}  exd4 {[%clk 0:02:40]} 18. cxd4 {[%clk 0:02:31]}  Rxd4 {[%clk 0:02:41]} 19. a3 {[%clk 0:02:30]}  Rfd8 {[%clk 0:02:37]} 20. b4 {[%clk 0:02:22]}  Nd3 {[%clk 0:02:27]} 21. Nf3 {[%clk 0:02:21]}  Nf4 {[%clk 0:01:50]} 22. gxf4 {[%clk 0:02:09]}  Rxf4 {[%clk 0:01:49]} 23. Qe5 {[%clk 0:02:03]}  Qxe5 {[%clk 0:01:44]} 24. Rxd8# {[%clk 0:02:01]} 1-0


[Site "https://www.chess.com"]

[Event "Titled Tuesday Blitz June 28 Late 2022"]
[White "Jeet, Jain"]
[Black "Sanchez, Robert"]
[WhiteFideId "5073022"]
[BlackFideId "2034360"]
[WhiteElo "2055"]
[BlackElo "2096"]
[Result "1-0"]
[Round "01"]
[TimeControl "180+1"]
[Date "2022.06.29"]
[WhiteClock "0:01:40"]
[BlackClock "0:00:47"]

1. d4 {[%clk 0:02:54]}  d5 {[%clk 0:02:55]} 2. Nf3 {[%clk 0:02:50]}  e6 {[%clk 0:02:55]} 3. e3 {[%clk 0:02:44]}  Be7 {[%clk 0:02:55]} 4. Bd3 {[%clk 0:02:44]}  Nf6 {[%clk 0:02:55]} 5. O-O {[%clk 0:02:45]}  O-O {[%clk 0:02:56]} 6. b3 {[%clk 0:02:46]}  c6 {[%clk 0:02:54]} 7. Bb2 {[%clk 0:02:46]}  Nbd7 {[%clk 0:02:55]} 8. Ne5 {[%clk 0:02:46]}  Nxe5 {[%clk 0:02:54]} 9. dxe5 {[%clk 0:02:47]}  Nd7 {[%clk 0:02:53]} 10. f4 {[%clk 0:02:47]}  b6 {[%clk 0:02:53]} 11. Nd2 {[%clk 0:02:47]}  Nc5 {[%clk 0:02:53]} 12. Be2 {[%clk 0:02:44]}  f6 {[%clk 0:02:54]} 13. Nf3 {[%clk 0:02:43]}  f5 {[%clk 0:02:52]} 14. Nd4 {[%clk 0:02:40]}  Bd7 {[%clk 0:02:50]} 15. g4 {[%clk 0:02:34]}  g6 {[%clk 0:02:41]} 16. Kg2 {[%clk 0:02:24]}  Ne4 {[%clk 0:02:40]} 17. g5 {[%clk 0:02:24]}  Bxg5 {[%clk 0:02:15]} 18. fxg5 {[%clk 0:02:20]}  Qxg5+ {[%clk 0:02:16]} 19. Kh1 {[%clk 0:02:15]}  Qxe3 {[%clk 0:02:16]} 20. Qe1 {[%clk 0:02:13]}  c5 {[%clk 0:02:08]} 21. Nf3 {[%clk 0:02:10]}  Qh6 {[%clk 0:01:52]} 22. Bc1 {[%clk 0:02:06]}  Qg7 {[%clk 0:01:52]} 23. Qh4 {[%clk 0:02:03]}  h5 {[%clk 0:01:43]} 24. Ng5 {[%clk 0:01:55]}  Qxe5 {[%clk 0:01:31]} 25. Bf4 {[%clk 0:01:55]}  Qc3 {[%clk 0:01:20]} 26. Rg1 {[%clk 0:01:44]}  d4 {[%clk 0:00:54]} 27. Nxe4 {[%clk 0:01:41]}  Bc6 {[%clk 0:00:47]} 28. Rxg6+ {[%clk 0:01:40]}  Kf7 {[%clk 0:00:47]} 29. Qf6+ {[%clk 0:01:40]}  Ke8 {[%clk 0:00:47]} 30. Qxe6+ {[%clk 0:01:40]} 1-0


[Site "https://www.chess.com"]

[Event "Titled Tuesday Blitz June 28 Late 2022"]
[White "Jorajuria Mendoza, Algol"]
[Black "Romanchuk, Viktor"]
[WhiteFideId "5128897"]
[BlackFideId "14109271"]
[WhiteElo "1600"]
[BlackElo "2242"]
[Result "1/2-1/2"]
[Round "01"]
[TimeControl "180+1"]
[Date "2022.06.29"]
[WhiteClock "0:00:11"]
[BlackClock "0:00:12"]

1. e4 {[%clk 0:02:56]}  e6 {[%clk 0:02:59]} 2. d4 {[%clk 0:02:54]}  d5 {[%clk 0:02:59]} 3. Nc3 {[%clk 0:02:53]}  dxe4 {[%clk 0:02:59]} 4. Nxe4 {[%clk 0:02:53]}  Nd7 {[%clk 0:03:00]} 5. g3 {[%clk 0:02:52]}  Ngf6 {[%clk 0:03:01]} 6. Bg2 {[%clk 0:02:52]}  Nxe4 {[%clk 0:02:58]} 7. Bxe4 {[%clk 0:02:52]}  Nf6 {[%clk 0:02:59]} 8. Bg2 {[%clk 0:02:51]}  e5 {[%clk 0:02:59]} 9. Nf3 {[%clk 0:02:06]}  e4 {[%clk 0:02:34]} 10. Ne5 {[%clk 0:02:00]}  Bd6 {[%clk 0:02:32]} 11. O-O {[%clk 0:01:56]}  O-O {[%clk 0:02:31]} 12. Bg5 {[%clk 0:01:34]}  Re8 {[%clk 0:02:05]} 13. Re1 {[%clk 0:01:21]}  Bf5 {[%clk 0:02:01]} 14. f3 {[%clk 0:00:51]}  exf3 {[%clk 0:00:48]} 15. Qxf3 {[%clk 0:00:51]}  Bc8 {[%clk 0:00:48]} 16. Rad1 {[%clk 0:00:36]}  h6 {[%clk 0:00:36]} 17. Bxf6 {[%clk 0:00:18]}  Qxf6 {[%clk 0:00:37]} 18. Qxf6 {[%clk 0:00:18]}  gxf6 {[%clk 0:00:37]} 19. Nc4 {[%clk 0:00:18]}  Rxe1+ {[%clk 0:00:26]} 20. Rxe1 {[%clk 0:00:18]}  Kf8 {[%clk 0:00:22]} 21. Nxd6 {[%clk 0:00:17]}  cxd6 {[%clk 0:00:23]} 22. Bd5 {[%clk 0:00:16]}  Rb8 {[%clk 0:00:22]} 23. Kf2 {[%clk 0:00:14]}  Bd7 {[%clk 0:00:20]} 24. c3 {[%clk 0:00:14]}  b6 {[%clk 0:00:21]} 25. Kf3 {[%clk 0:00:14]}  Re8 {[%clk 0:00:17]} 26. Rxe8+ {[%clk 0:00:13]}  Bxe8 {[%clk 0:00:17]} 27. Kf4 {[%clk 0:00:14]}  Bd7 {[%clk 0:00:18]} 28. Be4 {[%clk 0:00:14]}  Bc8 {[%clk 0:00:15]} 29. Bf5 {[%clk 0:00:13]}  Bb7 {[%clk 0:00:15]} 30. Bd7 {[%clk 0:00:13]}  Bd5 {[%clk 0:00:15]} 31. a3 {[%clk 0:00:13]}  Ke7 {[%clk 0:00:14]} 32. Bb5 {[%clk 0:00:12]}  Be6 {[%clk 0:00:13]} 33. Bd3 {[%clk 0:00:12]}  Kf8 {[%clk 0:00:13]} 34. Bf5 {[%clk 0:00:12]}  Bd5 {[%clk 0:00:13]} 35. Kg4 {[%clk 0:00:12]}  Kg7 {[%clk 0:00:13]} 36. Kh5 {[%clk 0:00:11]}  Bf3+ {[%clk 0:00:12]} 37. Bg4 {[%clk 0:00:11]}  Be4 {[%clk 0:00:13]} 38. Be2 {[%clk 0:00:09]}  Bg6+ {[%clk 0:00:12]} 39. Kg4 {[%clk 0:00:09]}  Be4 {[%clk 0:00:12]} 40. Kf4 {[%clk 0:00:09]}  Bd5 {[%clk 0:00:12]} 41. Bf3 {[%clk 0:00:10]}  Be6 {[%clk 0:00:12]} 42. Be4 {[%clk 0:00:10]}  Kf8 {[%clk 0:00:12]} 43. Bf5 {[%clk 0:00:10]}  Bd5 {[%clk 0:00:12]} 44. Be4 {[%clk 0:00:11]}  Be6 {[%clk 0:00:12]} 45. Bf5 {[%clk 0:00:11]} 1/2-1/2


[Site "https://www.chess.com"]

[Event "Titled Tuesday Blitz June 28 Late 2022"]
[White "Jorquera, Marcelo"]
[Black "Tatarinov, Dmitry"]
[WhiteFideId "3401197"]
[BlackFideId "24160067"]
[WhiteElo "2136"]
[BlackElo "2302"]
[Result "0-1"]
[Round "01"]
[TimeControl "180+1"]
[Date "2022.06.29"]
[WhiteClock "0:00:03"]
[BlackClock "0:00:37"]

1. e4 {[%clk 0:02:58]}  e5 {[%clk 0:02:59]} 2. Nc3 {[%clk 0:02:58]}  Nf6 {[%clk 0:02:59]} 3. g3 {[%clk 0:02:55]}  Nc6 {[%clk 0:02:59]} 4. Bg2 {[%clk 0:02:55]}  Bc5 {[%clk 0:02:59]} 5. d3 {[%clk 0:02:55]}  d6 {[%clk 0:02:59]} 6. Na4 {[%clk 0:02:54]}  O-O {[%clk 0:02:56]} 7. h3 {[%clk 0:02:48]}  a5 {[%clk 0:02:53]} 8. Nxc5 {[%clk 0:02:47]}  dxc5 {[%clk 0:02:54]} 9. Ne2 {[%clk 0:02:46]}  b6 {[%clk 0:02:54]} 10. O-O {[%clk 0:02:43]}  Nd4 {[%clk 0:02:45]} 11. f4 {[%clk 0:02:28]}  Nd7 {[%clk 0:02:45]} 12. f5 {[%clk 0:02:21]}  Ba6 {[%clk 0:02:43]} 13. b3 {[%clk 0:02:15]}  a4 {[%clk 0:02:37]} 14. g4 {[%clk 0:01:58]}  f6 {[%clk 0:02:37]} 15. Ng3 {[%clk 0:01:49]}  Kf7 {[%clk 0:02:36]} 16. g5 {[%clk 0:01:44]}  Ke7 {[%clk 0:02:31]} 17. Qh5 {[%clk 0:01:08]}  Kd6 {[%clk 0:02:31]} 18. Rf2 {[%clk 0:00:54]}  Qe7 {[%clk 0:02:23]} 19. Be3 {[%clk 0:00:45]}  Bb7 {[%clk 0:02:17]} 20. c3 {[%clk 0:00:41]}  axb3 {[%clk 0:02:17]} 21. cxd4 {[%clk 0:00:39]}  cxd4 {[%clk 0:02:18]} 22. Bc1 {[%clk 0:00:35]}  Nc5 {[%clk 0:02:17]} 23. Qd1 {[%clk 0:00:31]}  fxg5 {[%clk 0:02:05]} 24. a4 {[%clk 0:00:30]}  h6 {[%clk 0:02:02]} 25. Ba3 {[%clk 0:00:29]}  Kd7 {[%clk 0:02:03]} 26. Bxc5 {[%clk 0:00:27]}  Qxc5 {[%clk 0:02:02]} 27. Qxb3 {[%clk 0:00:27]}  Qd6 {[%clk 0:01:59]} 28. Rc2 {[%clk 0:00:23]}  Ra5 {[%clk 0:01:58]} 29. Rac1 {[%clk 0:00:22]}  c5 {[%clk 0:01:58]} 30. f6 {[%clk 0:00:17]}  Rxf6 {[%clk 0:01:51]} 31. Nf5 {[%clk 0:00:17]}  Qe6 {[%clk 0:01:52]} 32. Qb2 {[%clk 0:00:14]}  g6 {[%clk 0:01:49]} 33. Rxc5 {[%clk 0:00:12]}  Rxc5 {[%clk 0:01:46]} 34. Rxc5 {[%clk 0:00:11]}  gxf5 {[%clk 0:01:24]} 35. exf5 {[%clk 0:00:09]}  Qd6 {[%clk 0:01:21]} 36. Rb5 {[%clk 0:00:08]}  Bxg2 {[%clk 0:01:19]} 37. Kxg2 {[%clk 0:00:09]}  Qc6+ {[%clk 0:01:16]} 38. Kg1 {[%clk 0:00:08]}  Kc7 {[%clk 0:01:08]} 39. a5 {[%clk 0:00:08]}  bxa5 {[%clk 0:00:57]} 40. Rxa5 {[%clk 0:00:06]}  Rxf5 {[%clk 0:00:44]} 41. Ra7+ {[%clk 0:00:05]}  Kc8 {[%clk 0:00:41]} 42. Ra1 {[%clk 0:00:05]}  e4 {[%clk 0:00:40]} 43. Rc1 {[%clk 0:00:05]}  Rc5 {[%clk 0:00:40]} 44. Rxc5 {[%clk 0:00:05]}  Qxc5 {[%clk 0:00:41]} 45. dxe4 {[%clk 0:00:02]}  d3+ {[%clk 0:00:42]} 46. Kh1 {[%clk 0:00:01]}  Qc2 {[%clk 0:00:37]} 47. Qh8+ {[%clk 0:00:02]}  Kb7 {[%clk 0:00:37]} 48. Qg7+ {[%clk 0:00:03]}  Ka6 {[%clk 0:00:37]} 49. Qxh6+ {[%clk 0:00:04]}  Kb5 {[%clk 0:00:37]} 50. Qxg5+ {[%clk 0:00:04]}  Ka4 {[%clk 0:00:37]} 51. Qd5 {[%clk 0:00:04]}  d2 {[%clk 0:00:36]} 52. Qa8+ {[%clk 0:00:04]}  Kb3 {[%clk 0:00:36]} 53. Qb7+ {[%clk 0:00:04]}  Ka2 {[%clk 0:00:37]} 54. Qa6+ {[%clk 0:00:04]}  Kb1 {[%clk 0:00:37]} 55. Qb5+ {[%clk 0:00:04]}  Kc1 {[%clk 0:00:37]} 56. Qf1+ {[%clk 0:00:03]}  d1=Q {[%clk 0:00:37]} 0-1


[Site "https://www.chess.com"]

[Event "Titled Tuesday Blitz June 28 Late 2022"]
[White "Kamsky, Gata"]
[Black "Petrovic, Aleksa"]
[WhiteFideId "2000024"]
[BlackFideId "967629"]
[WhiteElo "2645"]
[BlackElo "2117"]
[Result "1-0"]
[Round "01"]
[TimeControl "180+1"]
[Date "2022.06.28"]
[WhiteClock "0:01:17"]
[BlackClock "0:00:17"]

1. e4 {[%clk 0:03:00]}  e6 {[%clk 0:02:57]} 2. Qe2 {[%clk 0:02:57]}  c5 {[%clk 0:02:56]} 3. Nf3 {[%clk 0:02:56]}  Nc6 {[%clk 0:02:55]} 4. g3 {[%clk 0:02:56]}  Nge7 {[%clk 0:02:53]} 5. Bg2 {[%clk 0:02:56]}  g6 {[%clk 0:02:53]} 6. O-O {[%clk 0:02:45]}  Bg7 {[%clk 0:02:52]} 7. c3 {[%clk 0:02:45]}  e5 {[%clk 0:02:49]} 8. a3 {[%clk 0:02:41]}  O-O {[%clk 0:02:44]} 9. b4 {[%clk 0:02:41]}  d6 {[%clk 0:02:43]} 10. d3 {[%clk 0:02:35]}  h6 {[%clk 0:02:33]} 11. b5 {[%clk 0:02:31]}  Na5 {[%clk 0:02:30]} 12. Nbd2 {[%clk 0:02:30]}  Be6 {[%clk 0:02:29]} 13. c4 {[%clk 0:02:30]}  Qd7 {[%clk 0:02:25]} 14. Bb2 {[%clk 0:02:29]}  b6 {[%clk 0:02:24]} 15. Bc3 {[%clk 0:02:29]}  Nb7 {[%clk 0:02:24]} 16. a4 {[%clk 0:02:28]}  a5 {[%clk 0:02:22]} 17. Ne1 {[%clk 0:02:25]}  Bh3 {[%clk 0:02:14]} 18. Nc2 {[%clk 0:02:05]}  Rae8 {[%clk 0:02:05]} 19. Ne3 {[%clk 0:02:04]}  Nd8 {[%clk 0:02:00]} 20. Nd5 {[%clk 0:02:04]}  Nxd5 {[%clk 0:01:58]} 21. cxd5 {[%clk 0:02:04]}  Bxg2 {[%clk 0:01:56]} 22. Kxg2 {[%clk 0:02:04]}  f5 {[%clk 0:01:53]} 23. f3 {[%clk 0:02:02]}  f4 {[%clk 0:01:51]} 24. Nc4 {[%clk 0:02:01]}  Qc7 {[%clk 0:01:49]} 25. Kh1 {[%clk 0:01:58]}  g5 {[%clk 0:01:44]} 26. Qg2 {[%clk 0:01:57]}  Nf7 {[%clk 0:01:23]} 27. Qh3 {[%clk 0:01:55]}  Rb8 {[%clk 0:01:18]} 28. Rf2 {[%clk 0:01:54]}  Qc8 {[%clk 0:01:16]} 29. Qh5 {[%clk 0:01:49]}  Kh7 {[%clk 0:01:02]} 30. Rg1 {[%clk 0:01:44]}  Qd7 {[%clk 0:00:52]} 31. Kg2 {[%clk 0:01:41]}  Nh8 {[%clk 0:00:48]} 32. Qh3 {[%clk 0:01:29]}  Qxh3+ {[%clk 0:00:46]} 33. Kxh3 {[%clk 0:01:29]}  Rf6 {[%clk 0:00:41]} 34. gxf4 {[%clk 0:01:23]}  gxf4 {[%clk 0:00:38]} 35. Rfg2 {[%clk 0:01:22]}  Bf8 {[%clk 0:00:32]} 36. Nxe5 {[%clk 0:01:18]}  dxe5 {[%clk 0:00:24]} 37. Bxe5 {[%clk 0:01:18]}  Rd6 {[%clk 0:00:17]} 38. Rg7+ {[%clk 0:01:17]} 1-0


[Site "https://www.chess.com"]

[Event "Titled Tuesday Blitz June 28 Late 2022"]
[White "Karas, Marek"]
[Black "Holt, Conrad"]
[WhiteFideId "14928558"]
[BlackFideId "2034387"]
[WhiteElo "2271"]
[BlackElo "2586"]
[Result "0-1"]
[Round "01"]
[TimeControl "180+1"]
[Date "2022.06.28"]
[WhiteClock "0:00:05"]
[BlackClock "0:00:11"]

1. d4 {[%clk 0:02:56]}  d5 {[%clk 0:02:59]} 2. Nf3 {[%clk 0:02:54]}  Nf6 {[%clk 0:02:58]} 3. c4 {[%clk 0:02:54]}  c6 {[%clk 0:02:58]} 4. Nc3 {[%clk 0:02:54]}  dxc4 {[%clk 0:02:58]} 5. a4 {[%clk 0:02:53]}  Bf5 {[%clk 0:02:58]} 6. Nh4 {[%clk 0:02:53]}  Bg4 {[%clk 0:02:50]} 7. h3 {[%clk 0:02:53]}  Bd7 {[%clk 0:02:49]} 8. e4 {[%clk 0:02:48]}  e6 {[%clk 0:02:47]} 9. Bxc4 {[%clk 0:02:47]}  Nxe4 {[%clk 0:02:46]} 10. Nf3 {[%clk 0:02:41]}  Bb4 {[%clk 0:02:34]} 11. Qd3 {[%clk 0:02:38]}  Nf6 {[%clk 0:02:19]} 12. Ne5 {[%clk 0:02:35]}  O-O {[%clk 0:02:18]} 13. O-O {[%clk 0:02:35]}  Nd5 {[%clk 0:02:15]} 14. Bd2 {[%clk 0:02:31]}  a5 {[%clk 0:02:07]} 15. Rad1 {[%clk 0:02:27]}  Be8 {[%clk 0:02:03]} 16. Bb3 {[%clk 0:02:26]}  Nd7 {[%clk 0:01:50]} 17. Bc2 {[%clk 0:02:23]}  f5 {[%clk 0:01:44]} 18. Rfe1 {[%clk 0:02:16]}  Nxe5 {[%clk 0:01:40]} 19. Rxe5 {[%clk 0:02:17]}  Bd7 {[%clk 0:01:34]} 20. Rde1 {[%clk 0:02:03]}  Bd6 {[%clk 0:01:33]} 21. Nxd5 {[%clk 0:01:50]}  Bxe5 {[%clk 0:01:30]} 22. Rxe5 {[%clk 0:01:47]}  cxd5 {[%clk 0:01:27]} 23. g4 {[%clk 0:01:29]}  Rc8 {[%clk 0:01:21]} 24. gxf5 {[%clk 0:01:27]}  Rxf5 {[%clk 0:01:14]} 25. Rxf5 {[%clk 0:01:27]}  exf5 {[%clk 0:01:14]} 26. Bb3 {[%clk 0:01:27]}  Be6 {[%clk 0:01:05]} 27. Bf4 {[%clk 0:01:18]}  Qe8 {[%clk 0:00:57]} 28. Kh2 {[%clk 0:01:16]}  h6 {[%clk 0:00:48]} 29. Be5 {[%clk 0:01:13]}  Kh7 {[%clk 0:00:47]} 30. Bf4 {[%clk 0:01:01]}  Qh5 {[%clk 0:00:44]} 31. Qe3 {[%clk 0:00:57]}  Re8 {[%clk 0:00:41]} 32. Bc2 {[%clk 0:00:53]}  Bf7 {[%clk 0:00:40]} 33. Qg3 {[%clk 0:00:44]}  Re2 {[%clk 0:00:25]} 34. Be5 {[%clk 0:00:43]}  Bg6 {[%clk 0:00:25]} 35. Bd1 {[%clk 0:00:36]}  Rxf2+ {[%clk 0:00:23]} 36. Qxf2 {[%clk 0:00:37]}  Qxd1 {[%clk 0:00:23]} 37. Qe3 {[%clk 0:00:24]}  Qc2+ {[%clk 0:00:18]} 38. Kg3 {[%clk 0:00:24]}  Qxb2 {[%clk 0:00:18]} 39. h4 {[%clk 0:00:21]}  Qb1 {[%clk 0:00:11]} 40. Qc3 {[%clk 0:00:18]}  Qg1+ {[%clk 0:00:11]} 41. Kh3 {[%clk 0:00:15]}  f4 {[%clk 0:00:11]} 42. Qc8 {[%clk 0:00:05]}  Qg3# {[%clk 0:00:11]} 0-1


[Site "https://www.chess.com"]

[Event "Titled Tuesday Blitz June 28 Late 2022"]
[White "Katz, Alexander"]
[Black "Wartiovaara, Oliver"]
[WhiteFideId "2039796"]
[BlackFideId "513024"]
[WhiteElo "2371"]
[BlackElo "1971"]
[Result "1-0"]
[Round "01"]
[TimeControl "180+1"]
[Date "2022.06.29"]
[WhiteClock "0:01:23"]
[BlackClock "0:00:34"]

1. e4 {[%clk 0:03:00]}  Nf6 {[%clk 0:02:40]} 2. e5 {[%clk 0:03:00]}  Ng8 {[%clk 0:02:39]} 3. d4 {[%clk 0:02:57]}  d6 {[%clk 0:02:37]} 4. f4 {[%clk 0:02:56]}  c5 {[%clk 0:02:29]} 5. c3 {[%clk 0:02:55]}  cxd4 {[%clk 0:02:27]} 6. cxd4 {[%clk 0:02:55]}  dxe5 {[%clk 0:02:26]} 7. fxe5 {[%clk 0:02:53]}  Nc6 {[%clk 0:02:23]} 8. Nf3 {[%clk 0:02:52]}  Bg4 {[%clk 0:02:22]} 9. Be3 {[%clk 0:02:53]}  e6 {[%clk 0:02:19]} 10. Nc3 {[%clk 0:02:52]}  Nge7 {[%clk 0:02:01]} 11. h3 {[%clk 0:02:50]}  Bxf3 {[%clk 0:02:00]} 12. Qxf3 {[%clk 0:02:50]}  Nf5 {[%clk 0:01:58]} 13. O-O-O {[%clk 0:02:47]}  Nxe3 {[%clk 0:01:53]} 14. Qxe3 {[%clk 0:02:46]}  Be7 {[%clk 0:01:51]} 15. Kb1 {[%clk 0:02:37]}  O-O {[%clk 0:01:50]} 16. Qe4 {[%clk 0:02:24]}  Qa5 {[%clk 0:01:35]} 17. Bd3 {[%clk 0:02:22]}  g6 {[%clk 0:01:34]} 18. h4 {[%clk 0:02:16]}  Rad8 {[%clk 0:01:30]} 19. Bc2 {[%clk 0:02:11]}  Qb6 {[%clk 0:01:15]} 20. d5 {[%clk 0:02:09]}  exd5 {[%clk 0:00:57]} 21. Nxd5 {[%clk 0:02:07]}  Qc5 {[%clk 0:00:57]} 22. h5 {[%clk 0:02:04]}  Nb4 {[%clk 0:00:52]} 23. hxg6 {[%clk 0:01:38]}  hxg6 {[%clk 0:00:50]} 24. Nxe7+ {[%clk 0:01:25]}  Qxe7 {[%clk 0:00:51]} 25. Bb3 {[%clk 0:01:24]}  Rxd1+ {[%clk 0:00:46]} 26. Rxd1 {[%clk 0:01:25]}  Nc6 {[%clk 0:00:34]} 27. Qxg6+ {[%clk 0:01:23]} 1-0


[Site "https://www.chess.com"]